Cogmind - Beta 11.1 @@@ ROGUE MODE // 2022.08.22 @ 12:50:56 Player: deadnoob Result: Destroyed by Y-45 Defender with Heavy Assault Rifle Performance ------------- Evolutions (1) 500 Regions Visited (4) 800 Robots Destroyed (19) 95 Value Destroyed (557) 557 Prototype IDs (3) 60 Alien Tech Used (0) 0 Bonus (260) 260 TOTAL SCORE: 2272 Bonus ------- Pacifist 200 High Alert Combat Kills 60 Cogmind --------- Core Integrity 0/400 Matter 10/300 Energy 280/280 System Corruption 0% Temperature Cool (9) Movement Rolling (175) Ox5 Location -9/Storage Parts ------- > --- POWER (1) -------- Heavy Ion Engine > --- PROPULSION (4) --- Light Treads Light Treads Compact Wheel > --- UTILITY (2) ------ Huge Storage Unit Light Armor Plating > --- WEAPON (2) ------- Mini Grenade Launcher > --- INVENTORY (25) --- Light Ion Engine Light Ion Engine Heavy Ion Engine Heavy Ion Engine Heavy Ion Engine Heavy Ion Engine Heavy Ion Engine Cooled Ion Engine Compact Wheel Huge Storage Unit Large Battery (200) Large Battery (200) Large Battery (200) ECM Suite Field Recycling Unit (0) Mini Grenade Launcher Mini Grenade Launcher Peak State ------------ > --- POWER ------------ Heavy Ion Engine > --- PROPULSION ------- Light Treads Light Treads Light Treads Compact Wheel > --- UTILITY ---------- Huge Storage Unit Light Armor Plating > --- WEAPON ----------- Rocket Launcher Mini Grenade Launcher > --- INVENTORY -------- Light Ion Engine Light Ion Engine Heavy Ion Engine Heavy Ion Engine Heavy Ion Engine Heavy Ion Engine Heavy Ion Engine Heavy Ion Engine Heavy Ion Engine Cooled Ion Engine Light Treads Light Treads Light Treads Improved Treads Compact Wheel Compact Wheel Huge Storage Unit Large Battery Large Battery Large Battery ECM Suite Field Recycling Unit Mini Grenade Launcher Mini Grenade Launcher Mining Claw [Rating: 17] Favorites ----------- Power Light Ion Engine Engine Light Ion Engine Propulsion Light Treads Treads Light Treads Wheel Compact Wheel Utility Huge Storage Unit Storage Huge Storage Unit Protection Light Armor Plating Weapon Mining Claw Launcher Rocket Launcher Slashing Weapon Mining Claw Build | -11 -10 -10 -9 -9 ------- Run | Scr Mat Min Mat Sto Slots Evolved 2 | . . . 2 . Power . | . . . . . Propulsion 2 | . . . 2 . Utility . | . . . . . Weapon . | . . . . . Parts Attached 27 | 4 1 3 7 12 Power 5 | 1 . . 1 3 Engine 5 | 1 . . 1 3 Core . | . . . . . Reactor . | . . . . . Propulsion 12 | 2 . . 5 5 Treads 8 | . . . 4 4 Leg . | . . . . . Wheel 4 | 2 . . 1 1 Hover . | . . . . . Flight . | . . . . . Utility 5 | 1 1 1 1 1 Device . | . . . . . Storage 3 | 1 1 1 . . Processor . | . . . . . Hackware . | . . . . . Protection 2 | . . . 1 1 Artifact . | . . . . . Weapon 5 | . . 2 . 3 Energy Gun . | . . . . . Energy Cannon . | . . . . . Ballistic Gun . | . . . . . Ballistic Cannon . | . . . . . Launcher 3 | . . 1 . 2 Special Weapon . | . . . . . Impact Weapon . | . . . . . Slashing Weapon 2 | . . 1 . 1 Piercing Weapon . | . . . . . Special Melee Weapon . | . . . . . Unidentified Prototypes 2 | . . . 1 1 Parts Lost 11 | . . . . 11 Power 2 | . . . . 2 Propulsion 6 | . . . . 6 Utility 1 | . . . . 1 Weapon 2 | . . . . 2 Highest Loss Streak 11 | . . . . 11 To Critical Strikes . | . . . . . Average Slot Usage (%) 87 | . 59 84 99 78 Engine 11 | . 14 14 11 9 Treads 23 | . . . 41 25 Wheel 12 | . 28 28 2 7 Storage 20 | . 16 28 20 11 Protection 1 | . . . 1 6 Launcher 8 | . . 3 11 13 Slashing Weapon 8 | . . 9 11 4 Naked Turns . | . . . . . Heaviest Build 99 | 8 88 94 99 97 Greatest Support 80 | 26 26 26 80 43 Greatest Overweight (x) 29 | . 3 3 6 29 Average Overweight (x) 2 | . . 3 2 5 Largest Inventory Capacity 25 | 8 25 25 25 25 Average Capacity 22 | 7 10 25 25 25 Most Carried 25 | 4 8 10 25 25 Average Carried 11 | 2 5 9 11 23 Final Capacity 25 | 8 25 25 25 25 Final Carried 25 | 4 8 10 25 17 Class Distribution -------------------- 100% | Mutant Dominant Class ---------------- Mutant | -10/Materials Mutant | -10/Mines Mutant | -9/Materials Mutant | -9/Storage Resources | -11 -10 -10 -9 -9 ----------- Run | Scr Mat Min Mat Sto Matter Collected 423 | 222 . 54 92 55 Remotely . | . . . . . Salvage Created 476 | . . . 117 359 Parts 26 | . . . 11 15 Haulers Intercepted 1 | . . . . 1 Recyclers Shooed . | . . . . . Parts Field Recycled . | . . . . . Retrieved Matter . | . . . . . Parts Self-Destructed . | . . . . . Prevented . | . . . . . Kills | -11 -10 -10 -9 -9 ------- Run | Scr Mat Min Mat Sto Combat Hostiles Destroyed 14 | . . . 4 10 Melee 1 | . . . . 1 AOE 13 | . . . 4 9 Classes Destroyed 8 | . . . 4 4 Hauler 1 | . . . . 1 Recycler 2 | . . . 1 1 Operator 1 | . . . . 1 Watcher 1 | . . . 1 . Swarmer 3 | . . . 3 . Grunt 5 | . . . . 5 Brawler 1 | . . . . 1 Sentry 5 | . . . 1 4 Best Kill Streak 12 | . . . 4 12 Combat Bots Only 9 | . . . 3 9 Max Kills in Single Turn 5 | . . . 3 5 Gunslinging . | . . . . . Exploded 3 | . . . 3 2 Melee 1 | . . . . 1 Uniques/NPCs Destroyed . | . . . . . Combat | -11 -10 -10 -9 -9 -------- Run | Scr Mat Min Mat Sto Damage Taken 2091 | . 116 . 139 1836 Core 421 | . 12 . 37 372 Absorbed by Shields . | . . . . . Core Remaining (%) 97 | 100 . 95 . . Volleys Fired 23 | . . . 9 14 Largest 2 | . . . 1 2 Hottest 63 | . . . 33 63 Shots Fired 28 | . . . 9 19 Gun . | . . . . . Cannon . | . . . . . Launcher 28 | . . . 9 19 Special . | . . . . . Kinetic . | . . . . . Thermal . | . . . . . Explosive 28 | . . . 9 19 Electromagnetic . | . . . . . Robot Hit Streak 5 | . . . 1 5 Robot Miss Streak 2 | . . . . 2 Penetration Max . | . . . . . Secondary Targets . | . . . . . Shots Hit Robots 8 | . . . 1 7 Core Hits 33 | . . . 6 27 Critical Kills . | . . . . . Critical Parts Destroyed . | . . . . . Critical Strikes . | . . . . . Melee Attacks 3 | . . . . 3 Impact . | . . . . . Slashing 3 | . . . . 3 Piercing . | . . . . . Sneak Attacks . | . . . . . Combat Hostiles . | . . . . . Follow-up Attacks . | . . . . . Damage Inflicted 1689 | . 13 . 414 1262 Guns . | . . . . . Cannons . | . . . . . Explosions 1605 | . . . 414 1191 Melee 71 | . . . . 71 Ramming 13 | . 13 . . . Kinetic . | . . . . . Thermal . | . . . . . Explosive 1605 | . . . 414 1191 Electromagnetic . | . . . . . Impact . | . . . . . Slashing 71 | . . . . 71 Piercing . | . . . . . Highest Corruption . | . . . . . Average Corruption . | . . . . . Corruption Purged . | . . . . . Corruption Blocked . | . . . . . Overload Shots . | . . . . . Overflow Damage 27 | . . . 19 8 Projectiles . | . . . . . Explosions 27 | . . . 19 8 Melee . | . . . . . Knockbacks . | . . . . . Impact . | . . . . . Kinetic . | . . . . . Secondary . | . . . . . Self-Inflicted Damage 101 | . 6 . 71 24 Shots 4 | . . . 2 2 Rammed 1 | . 1 . . . Targets Rammed 1 | . 1 . . . Kicked . | . . . . . Crushed . | . . . . . Highest Temperature 81 | . . . . 81 Average Temperature 28 | . . . . 28 Received Heat Transfer 702 | . 36 . 9 657 Siege Activations . | . . . . . Robots Corrupted . | . . . . . Combat Hostiles . | . . . . . Parts Fried . | . . . . . Impact Corruptions . | . . . . . Robots Melted . | . . . . . Combat Hostiles . | . . . . . Parts Melted . | . . . . . Heat Transferred . | . . . . . Parts Sabotaged . | . . . . . Parts Stolen . | . . . . . Parts Stripped . | . . . . . Power Chain Reactions . | . . . . . Missiles Intercepted . | . . . . . Alert | -11 -10 -10 -9 -9 ------- Run | Scr Mat Min Mat Sto Peak Influence 605 | . 36 13 293 605 Initial 13 | . . 13 4 10 Average 124 | . 21 13 123 368 Maximum Alert Level 2 | . . . 1 2 Low Security (%) 69 | 100 100 100 55 36 Level 1 20 | . . . 44 5 Level 2 10 | . . . . 57 Level 3 . | . . . . . Level 4 . | . . . . . Level 5 . | . . . . . High Security . | . . . . . Max Security . | . . . . . Squads Dispatched 6 | . 2 . . 4 Investigation 1 | . 1 . . . Extermination . | . . . . . Reinforcement 2 | . 1 . . 1 Assault . | . . . . . Garrison 3 | . . . . 3 Intercept . | . . . . . Searches Triggered . | . . . . . Construction Impeded . | . . . . . Haulers Reinforced . | . . . . . Active Scanning Responses . | . . . . . Cargo Convoy Interrupts . | . . . . . Stealth | -11 -10 -10 -9 -9 --------- Run | Scr Mat Min Mat Sto Distress Signals . | . . . . . Communications Jammed . | . . . . . Distress Signals . | . . . . . Times Spotted 25 | . 6 . 6 13 Peak Tracking Total 5 | . 5 . 3 5 Tactical Retreats . | . . . . . Traps | -11 -10 -10 -9 -9 ------- Run | Scr Mat Min Mat Sto Traps Triggered 1 | . 1 . . . Indirectly . | . . . . . Trap Hack Attempts . | . . . . . Triggered . | . . . . . Disarmed . | . . . . . Reprogrammed . | . . . . . Reused . | . . . . . Traps Extracted . | . . . . . Installed . | . . . . . Triggered . | . . . . . Machines | -11 -10 -10 -9 -9 ---------- Run | Scr Mat Min Mat Sto Machines Disabled 5 | . . . 1 4 Max in Single Turn 1 | . . . 1 1 Machines Sabotaged . | . . . . . Garrisons Compromised . | . . . . . Overloaded Fab Kills . | . . . . . Hacking | -11 -10 -10 -9 -9 --------- Run | Scr Mat Min Mat Sto Machines Accessed 3 | . 1 . 2 . Terminals 3 | . 1 . 2 . Fabricators . | . . . . . Repair Stations . | . . . . . Recycling Units . | . . . . . Scanalyzers . | . . . . . Garrison Access . | . . . . . Total Hacks 10 | . 2 . 8 . Successful 8 | . 1 . 7 . Failed 2 | . 1 . 1 . Catastrophic . | . . . . . Database Lockouts . | . . . . . Manual 5 | . 2 . 3 . Terminals 10 | . 2 . 8 . Fabricators . | . . . . . Repair Stations . | . . . . . Recycling Units . | . . . . . Scanalyzers . | . . . . . Garrison Access . | . . . . . Terminal Hacks 8 | . 1 . 7 . Prototype ID Bank 1 | . . . 1 . Branch Access Points 1 | . . . 1 . Emergency Access Points 1 | . . . 1 . Terminal Index 1 | . 1 . . . Alert Level 2 | . . . 2 . Unreport Threat 2 | . . . 2 . Fabricator Hacks . | . . . . . Repair Station Hacks . | . . . . . Recycling Unit Hacks . | . . . . . Scanalyzer . | . . . . . Garrison Access Hacks . | . . . . . Unauthorized Hacks . | . . . . . Terminals . | . . . . . Fabricators . | . . . . . Repair Stations . | . . . . . Recycling Units . | . . . . . Scanalyzers . | . . . . . Garrison Access . | . . . . . Data Cores Recovered . | . . . . . Used . | . . . . . Hacking Detections 2 | . 1 . 1 . Full Trace Events . | . . . . . Feedback Events . | . . . . . Feedback Blocked . | . . . . . Robot Schematics Acquired . | . . . . . Robots Built . | . . . . . Authchips . | . . . . . Time . | . . . . . Total Robot Build Rating . | . . . . . Part Schematics Acquired . | . . . . . Parts Built . | . . . . . Authchips . | . . . . . Time . | . . . . . Total Part Build Rating . | . . . . . Parts Repaired . | . . . . . Time . | . . . . . Parts Recycled . | . . . . . Recycled Matter . | . . . . . Retrieved Matter . | . . . . . Retrieved Components . | . . . . . Parts Scanalyzed . | . . . . . Part Schematics Acquired . | . . . . . Parts Damaged . | . . . . . Bothacking | -11 -10 -10 -9 -9 ------------ Run | Scr Mat Min Mat Sto Used RIF Installer . | . . . . . Robots Hacked . | . . . . . Non-combat . | . . . . . Combat . | . . . . . Robot Hacks Applied . | . . . . . Relay Couplers Released . | . . . . . Fabnet Peak Effective % . | . . . . . Robots Rewired . | . . . . . Allies Hacked . | . . . . . Hacks Repelled . | . . . . . Allies | -11 -10 -10 -9 -9 -------- Run | Scr Mat Min Mat Sto Total Allies . | . . . . . Largest Group . | . . . . . Highest-Rated Group . | . . . . . Highest-Rated Ally . | . . . . . Total Orders . | . . . . . Ally Attacks . | . . . . . Total Damage . | . . . . . Kills . | . . . . . Allies Corrupted . | . . . . . Allies Melted . | . . . . . Intel | -11 -10 -10 -9 -9 ------- Run | Scr Mat Min Mat Sto Robot Analysis Total . | . . . . . Derelict Logs Recovered . | . . . . . Drone Launches . | . . . . . Drone Recoveries . | . . . . . Exploration | -11 -10 -10 -9 -9 ------------- Run | Scr Mat Min Mat Sto Turns Passed 1105 | 58 105 265 480 197 Spaces Moved 578 | 54 88 186 191 59 Core 2 | 1 . . . 1 Treads 154 | . . . 144 10 Legs . | . . . . . Wheels 422 | 53 88 186 47 48 Hover . | . . . . . Flight . | . . . . . Fastest Speed 50 | 50 90 135 190 175 Average Speed 165 | 89 96 135 227 231 Slowest Speed 1500 | 90 135 135 240 1500 Overloaded Moves . | . . . . . Propulsion Burnouts . | . . . . . Robots Hopped . | . . . . . Cave-ins Triggered . | . . . . . Exploration Rate (%) 23 | 3 22 52 23 19 Regions Visited 4 Branch Regions 2 Pre-discovered Areas . | . . . . . Known Exits Taken 1 | . . . 1 . Unknown Exits Taken 3 | 1 1 1 . . Scrap Searched . | . . . . . Spaces Dug 53 | . . . 43 10 Terrain Destroyed 195 | . . . 78 117 Melee . | . . . . . Projectile . | . . . . . AOE 195 | . . . 78 117 Terrain Rammed . | . . . . . Walls Destroyed . | . . . . . Machines Disabled . | . . . . . Actions | -11 -10 -10 -9 -9 --------- Run | Scr Mat Min Mat Sto Total 690 | 61 108 198 228 95 Wait 23 | . 15 8 . . Move 574 | 53 87 185 190 59 Hop . | . . . . . Pick Up 33 | 4 4 2 19 4 Fast Attach 8 | 4 1 2 1 . Attach 13 | . . . 4 9 Detach . | . . . . . Swap 6 | . . 1 2 3 Drop 6 | . . . 3 3 Fire 23 | . . . 9 14 Melee 3 | . . . . 3 Ram 1 | . 1 . . . Kick . | . . . . . Crush . | . . . . . Escape Stasis . | . . . . . Rewire . | . . . . . Trap . | . . . . . Miscellaneous . | . . . . . Route ------- -11/Scrapyard -10/Materials -10/Mines -9/Materials (discovered 4 exits: Min x2 / *Sto x2) -9/Storage History --------- Turn | Location | Event 19 | -11/Scrapyard | Discovered new exit (range 14) 59 | -11/Scrapyard | Entered Materials 145 | -10/Materials | Discovered new exit (range 13) 164 | -10/Materials | Entered Mines 195 | -10/Mines | Met a Derelict bent on vengeance 318 | -10/Mines | Build established: Mutant 356 | -10/Mines | Received a Rocket Launcher from a helpful Derelict 418 | -10/Mines | Discovered new exit (range 5) 429 | -10/Mines | Entered Materials 429 | -9/Materials | Evolved 2 slots: Propulsion x2 811 | -9/Materials | Identified exit to Mines 811 | -9/Materials | Identified exit to Storage 909 | -9/Materials | Entered Storage 1047 | -9/Storage | Core integrity fell below 50% 1048 | -9/Storage | Destroyed 9 combat bots 1070 | -9/Storage | Core integrity fell below 20% 1100 | -9/Storage | Lost 11 parts (2p6n1u2w) 1106 | -9/Storage | Destroyed by Y-45 Defender with Heavy Assault Rifle Last Messages --------------- 01077_ U-05 Engineer lays Concrete. 01080_ Critical hit (Burn: +37). 01080_ U-05 Engineer lays Concrete. 01081_ U-05 Engineer builds a Wall. 01081_ U-05 Engineer lays Concrete. 01086_ U-05 Engineer builds a Wall. 01086_ U-05 Engineer lays Concrete. 01087_ Acquired Lgt. Armor Plating. 01088_ The unstable cave ceiling collapses. 01088_ U-05 Engineer builds a Wall. 01088_ Acquired 25 matter. 01089_ Critical hit (Burn: +37). 01091_ U-05 Engineer builds a Wall. 01091_ K-01 Serf collects debris. 01092_ U-05 Engineer builds a Wall. 01093_ U-05 Engineer destroyed. 01094_ K-01 Serf collects debris. 01095_ U-05 Engineer lays Concrete. 01097_ U-05 Engineer builds a Wall. 01097_ K-01 Serf collects debris. Map ----- +----------------------------------------------------+ | ???????????????????????????????????????? | | ???????????????????????????????????????? | | ???????????????????????????????????????? | | ???????????????????????????????????????? | | ??#####????????????????????????????????? | | ??# #####????????????????????????????? | | ??# ## ]#????????????????????????????? | | ??# ##!]#????????????????????????????? | | ??# ## ]#????????????????????????????? | | ??# ##*"##???????????????????????????? | | ??# + = T#???????????????????????????? | | ??# # ##???????????##??????????????? | | ??# #####???????##### ##?????????????? | | ??# ##????????### #######???????? | | ### ########## # #???????? | | ## #### # """ #???????? | | ## " # "G" #???????? | | ## " " #???????? | | ## #???????? | | # #####+### #???????? | | # ####### # ! # * #???????? | | ######### [%[ * #???????? | | ????????# Y % #???????? | | ????????# k Y## # ###???????? | | ????????# ##%! ## # ##?????????? | | ????????# @# ######"""#????????? | | ????????# # ### #"T"#????????? | | ????????# ## ## ???????? | | ????????# %% # #?????? | | ????????# k ## """ ##?????? | | ????????# """ #??????? | | ????????######### "" ?????????? | | ???????????????? + ??????????? | | ???????????????## # ?????????? | | ???????????????? # [????????? | | ????????????????###"###########????????? | | ????????????????## ???????????????????? | | ?????????????????? ???????????????????? | | ?????????????????? ???????????????????? | | ?????????????????? ???????????????????? | | ?????????????????? ???????????????????? | | ???????????????????????????????????????? | | ???????????????????????????????????????? | | ???????????????????????????????????????? | | ???????????????????????????????????????? | | ???????????????????????????????????????? | | ???????????????????????????????????????? | | ???????????????????????????????????????? | | ???????????????????????????????????????? | | ???????????????????????????????????????? | +----------------------------------------------------+ Best States ------------- Heat Dissipation 28 Energy Generation 14 Energy Capacity 280 Matter Stores 300 Matter Capacity 300 Sight Range 16 Terrain Scan Density 10 Armor Coverage 150 Evasion (%) 42 Recoil Reduction 4 Item Schematics ----------------- None Robot Schematics ------------------ None Fabricated ------------ Nothing Alien Tech Used ----------------- None Achievements -------------- None Challenges ------------ None Game ------ Seed SiegeDerelictSuite Manual? 0 Play Time 00:12:05 Cumulative 37.2 hours Start 2022.08.22 @ 12:38:29 End 2022.08.22 @ 12:50:56 Sessions 1 Manual Loads 0 Difficulty Rogue Special Mode None Game No. 65 Rogue 65 Adventurer 0 Explorer 0 Win Type - Total 0 Types 0/0/0/0/0/0/0/0/0 Lore% 39 Gallery% 41 Achievement% 36 Wizard Run 0 Options --------- ASCII 0 Keyboard 0 Movement Numpad Keybinds 0 Fullscreen 2 Font 18/SmallcapsGlow Map View 76x50 Tactical HUD 1 Map Filters NONE Filters NONE Steam 1 RUN: d23e72ec-7261-4ad8-ad6d-a83ed15e9c71